fUST/lending_fUST_20250214
["ID","MTS","AMOUNT","RATE_DAILY","PERIOD"]
[353004087,1739485843579,-500.0,0.0001378,2]
[353004088,1739485843590,-500.0,0.0001378,2]
[353004089,1739485843599,-500.0,0.0001378,2]
[353004090,1739485843608,-2156.53,0.0001378,2]
[353004091,1739485843619,-500.0,0.0001378,2]
[353004092,1739485843630,-445.80595584,0.0001378,2]
[353004093,1739485843738,-500.0,0.0001378,2]
[353004094,1739485843749,-500.0,0.0001378,2]
[353004095,1739485843758,-500.0,0.0001378,2]
[353004096,1739485843767,-500.0,0.0001378,2]
[353004097,1739485843776,-500.0,0.0001378,2]
[353004098,1739485843786,-365.54549456,0.0001378,2]
[353004099,1739485843795,-500.0,0.0001378,2]
[353004100,1739485843805,-500.0,0.0001378,2]
[353004101,1739485843814,-527.8,0.0001378,2]
[353004102,1739485843823,-1006.14,0.0001378,2]
[353004103,1739485843833,-16065.36,0.0001378,2]
[353004104,1739485843844,-1631.44,0.0001378,2]
[353004105,1739485843853,-500.0,0.0001378,2]
[353004106,1739485843863,-500.0,0.0001378,2]
[353004107,1739485843872,-500.0,0.0001378,2]
[353004108,1739485843882,-518.12909913,0.0001378,2]
[353004109,1739485843892,-771.22,0.0001378,2]
[353004110,1739485843902,-583.34,0.0001378,2]
[353004111,1739485843912,-500.0,0.0001378,2]
[353004112,1739485843923,-285.37874565,0.0001378,2]
[353004113,1739485843933,-500.0,0.0001378,2]
[353004114,1739485843943,-500.0,0.0001378,2]
[353004115,1739485843952,-904.48,0.0001378,2]
[353004116,1739485843960,-500.0,0.0001378,2]
[353004117,1739485843970,-500.0,0.0001378,2]
[353004118,1739485843979,-500.0,0.0001378,2]
[353004119,1739485843988,-500.0,0.0001378,2]
[353004120,1739485843998,-500.0,0.0001378,2]
[353004121,1739485844010,-500.0,0.0001378,2]
[353004122,1739485844020,-6502.85,0.0001378,2]
[353004123,1739485844030,-500.0,0.0001378,2]
[353004124,1739485844039,-500.0,0.0001378,2]
[353004125,1739485844048,-500.0,0.0001378,2]
[353004126,1739485844058,-652.54,0.0001378,2]
[353004127,1739485844068,-500.0,0.0001378,2]
[353004128,1739485844077,-500.0,0.0001378,2]
[353004129,1739485844091,-288.15,0.0001378,2]
[353004130,1739485844101,-500.0,0.0001378,2]
[353004131,1739485844111,-500.0,0.0001378,2]
[353004132,1739485844120,-502.47271874,0.0001378,2]
[353004133,1739485844129,-500.0,0.0001378,2]
[353004134,1739485844138,-500.0,0.0001378,2]
[353004135,1739485844148,-500.0,0.0001378,2]
[353004136,1739485844157,-500.0,0.0001378,2]
[353004137,1739485844167,-500.0,0.0001378,2]
[353004138,1739485844176,-1423.3,0.0001378,2]
[353004139,1739485844186,-519.06782538,0.0001378,2]
[353004140,1739485844196,-500.0,0.0001378,2]
[353004141,1739485844205,-500.0,0.0001378,2]
[353004142,1739485844215,-558.32,0.0001378,2]
[353004143,1739485844225,-500.0,0.0001378,2]
[353004144,1739485844235,-573.1,0.0001378,2]
[353004145,1739485844244,-500.0,0.0001378,2]
[353004146,1739485844254,-1497.04,0.0001378,2]
[353004147,1739485844263,-503.56345749,0.0001378,2]
[353004148,1739485844273,-500.0,0.0001378,2]
[353004149,1739485844282,-503.08097205,0.0001378,2]
[353004150,1739485844291,-207.17,0.0001378,2]
[353004151,1739485844300,-500.0,0.0001378,2]
[353004152,1739485844310,-941.52,0.0001378,2]
[353004153,1739485844320,-500.0,0.0001378,2]
[353004154,1739485844330,-500.0,0.0001378,2]
[353004155,1739485844340,-1323.85,0.0001378,2]
[353004156,1739485844350,-560.11,0.0001378,2]
[353004157,1739485844360,-500.0,0.0001378,2]
[353004158,1739485844370,-6489.46,0.0001386,2]
[353004159,1739485844379,-3827.99,0.0001386,2]
[353004160,1739485844389,-6489.46,0.00013862,2]
[353004161,1739485844399,-6489.46,0.00013862,2]
[353004162,1739485844409,-3827.99,0.00013862,2]
[353004163,1739485844419,-3827.99,0.00013862,2]
[353004164,1739485844430,-151.0,0.00013863,2]
[353004165,1739485844440,-500.0,0.00013863,2]
[353004166,1739485844450,-509.08,0.00013863,2]
[353004167,1739485844460,-221.65742302,0.00013863,2]
[353004168,1739485844470,-500.0,0.00013863,2]
[353004169,1739485844480,-500.0,0.00013863,2]
[353004170,1739485844490,-500.0,0.00013863,2]
[353004171,1739485844499,-500.0,0.00013863,2]
[353004172,1739485844514,-500.0,0.00013863,2]
[353004173,1739485844524,-500.0,0.00013863,2]
[353004174,1739485844534,-500.0,0.00013863,2]
[353004175,1739485844543,-665.87,0.00013863,2]
[353004176,1739485844553,-500.0,0.00013863,2]
[353004177,1739485844563,-500.0,0.00013863,2]
[353004178,1739485844573,-500.0,0.00013863,2]
[353004179,1739485844582,-500.0,0.00013863,2]
[353004180,1739485844592,-254.32,0.00013863,2]
[353004181,1739485844601,-500.0,0.00013863,2]
[353004182,1739485844611,-500.0,0.00013863,2]
[353004183,1739485844620,-500.0,0.00013863,2]
[353004184,1739485844630,-500.0,0.00013863,2]
[353004185,1739485844639,-628.69,0.00013863,2]
[353004186,1739485844649,-500.0,0.00013863,2]
[353004187,1739485844658,-500.0,0.00013863,2]
[353004188,1739485844667,-500.0,0.00013863,2]
[353004189,1739485844677,-2156.53,0.00013863,2]
[353004190,1739485844687,-563.0,0.00013863,2]
[353004191,1739485844696,-500.0,0.00013863,2]
[353004192,1739485844706,-500.0,0.00013863,2]
[353004193,1739485844715,-500.0,0.00013863,2]
[353004194,1739485844724,-500.0,0.00013863,2]
[353004195,1739485844734,-500.0,0.00013863,2]
[353004196,1739485844744,-527.8,0.00013863,2]
[353004197,1739485844753,-1006.14,0.00013863,2]
[353004198,1739485844763,-16065.36,0.00013863,2]
[353004199,1739485844773,-1631.44,0.00013863,2]
[353004200,1739485844782,-500.0,0.00013863,2]
[353004201,1739485844792,-500.0,0.00013863,2]
[353004202,1739485844802,-771.22,0.00013863,2]
[353004203,1739485844811,-583.34,0.00013863,2]
[353004204,1739485844820,-500.0,0.00013863,2]
[353004205,1739485844830,-500.0,0.00013863,2]
[353004206,1739485844840,-904.48,0.00013863,2]
[353004207,1739485844850,-464.94,0.00013863,2]
[353004208,1739485844859,-500.0,0.00013863,2]
[353004209,1739485844869,-500.0,0.00013863,2]
[353004210,1739485844878,-6502.85,0.00013863,2]
[353004211,1739485844887,-217.28918862,0.00013863,2]
[353004212,1739485844897,-652.54,0.00013863,2]
[353004213,1739485844912,-549.25,0.00013863,2]
[353004214,1739485844926,-500.0,0.00013863,2]
[353004215,1739485844940,-597.43,0.00013863,2]
[353004216,1739485844954,-500.0,0.00013863,2]
[353004217,1739485844966,-500.0,0.00013863,2]
[353004218,1739485844976,-1423.3,0.00013863,2]
[353004219,1739485844990,-500.0,0.00013863,2]
[353004220,1739485845005,-500.0,0.00013863,2]
[353004221,1739485845019,-573.1,0.00013863,2]
[353004222,1739485845032,-558.32,0.00013863,2]
[353004223,1739485845045,-1497.04,0.00013863,2]
[353004224,1739485845058,-941.52,0.00013863,2]
[353004225,1739485845072,-500.0,0.00013863,2]
[353004226,1739485845086,-1323.85,0.00013863,2]
[353004227,1739485845099,-560.11,0.00013863,2]
[353004228,1739485845112,-2178.83578783,0.000139,2]
[353004229,1739485845484,-500.0,0.00013698,2]
[353004230,1739485845495,-500.0,0.00013698,2]
[353004231,1739485845507,-500.0,0.0001378,2]
[353004232,1739485845519,-500.0,0.0001378,2]
[353004233,1739485845530,-500.0,0.00013863,2]
[353004234,1739485845541,-131.16421217,0.000139,2]
[353004235,1739485845553,-354.9488798,0.000139,2]
[353004236,1739485845564,-354.9488798,0.000139,2]
[353004237,1739485845576,-354.9488798,0.000139,2]
[353004238,1739485845588,-32.30208658,0.00013943,2]
[353004241,1739485845603,-3753.24749476,0.00013943,2]
[353004242,1739485845617,-513.329243,0.00013943,2]
[353004244,1739485845632,-2190.58117566,0.00013943,2]
[353004245,1739485845643,-6489.46,0.00013944,2]
[353004246,1739485845655,-6489.46,0.00013944,2]
[353004247,1739485845666,-6489.46,0.00013944,2]
[353004248,1739485845678,-6489.46,0.00013944,2]
[353004249,1739485845690,-6489.48571411,0.00013944,2]
[353004250,1739485845702,-3827.99,0.00013944,2]
[353004252,1739485845713,-3827.99,0.00013944,2]
[353004254,1739485845724,-151.0,0.00013945,2]
[353004256,1739485845737,-151.0,0.00013945,2]
[353004258,1739485845748,-330.350272,0.00013945,2]
[353004259,1739485845759,-330.350272,0.00013945,2]
[353004260,1739485845771,-402.204696,0.00013945,2]
[353004261,1739485845782,-151.0,0.00013945,2]
[353004262,1739485845794,-402.204696,0.00013945,2]
[353004263,1739485845806,-665.87,0.00013945,2]
[353004264,1739485845818,-567.0,0.00013945,2]
[353004265,1739485845829,-500.0,0.00013945,2]
[353004266,1739485845842,-500.0,0.00013945,2]
[353004267,1739485845853,-500.0,0.00013945,2]
[353004268,1739485845865,-500.0,0.00013945,2]
[353004269,1739485845876,-500.0,0.00013945,2]
[353004270,1739485845887,-500.0,0.00013945,2]
[353004271,1739485845898,-2156.53,0.00013945,2]
[353004272,1739485845909,-500.0,0.00013945,2]
[353004273,1739485845920,-500.0,0.00013945,2]
[353004274,1739485845931,-250.08283738,0.00013945,2]
[353004275,1739485845942,-527.8,0.00013945,2]
[353004276,1739485845954,-1006.14,0.00013945,2]
[353004277,1739485845966,-16065.36,0.00013945,2]
[353004278,1739485845977,-1631.44,0.00013945,2]
[353004279,1739485845990,-500.0,0.00013945,2]
[353004280,1739485846000,-771.22,0.00013945,2]
[353004281,1739485846014,-583.34,0.00013945,2]
[353004282,1739485846023,-500.0,0.00013945,2]
[353004283,1739485846033,-904.48,0.00013945,2]
[353004284,1739485846043,-500.0,0.00013945,2]
[353004285,1739485846054,-500.0,0.00013945,2]
[353004286,1739485846063,-6502.85,0.00013945,2]
[353004287,1739485846073,-652.54,0.00013945,2]
[353004288,1739485846083,-500.0,0.00013945,2]
[353004289,1739485846095,-500.0,0.00013945,2]
[353004290,1739485846104,-500.0,0.00013945,2]
[353004291,1739485846114,-1423.3,0.00013945,2]
[353004292,1739485846123,-500.0,0.00013945,2]
[353004293,1739485846134,-500.0,0.00013945,2]
[353004294,1739485846143,-573.1,0.00013945,2]
[353004295,1739485846156,-558.32,0.00013945,2]
[353004296,1739485846165,-1497.04,0.00013945,2]
[353004297,1739485846176,-941.52,0.00013945,2]
[353004298,1739485846186,-500.0,0.00013945,2]
[353004299,1739485846196,-1323.85,0.00013945,2]
[353004300,1739485846206,-560.11,0.00013945,2]
[353004301,1739485846215,-500.0,0.00013945,2]
[353004302,1739485846226,-1000.0,0.0001396,2]
[353004303,1739485846235,-153.0,0.00013996,2]
[353004304,1739485846245,-153.0,0.00013996,2]
[353004306,1739485846255,-153.0,0.00013996,2]
[353004309,1739485846447,-153.0,0.00013996,2]
[353004310,1739485846462,-153.0,0.00013996,2]
[353004311,1739485846472,-153.0,0.00013996,2]
[353004312,1739485846481,-153.0,0.00013996,2]
[353004313,1739485846491,-153.0,0.00013996,2]
[353004314,1739485846500,-153.0,0.00013996,2]
[353004315,1739485846510,-153.0,0.00013996,2]
[353004316,1739485846519,-153.0,0.00013996,2]
[353004317,1739485846529,-153.0,0.00013996,2]
[353004318,1739485846540,-153.0,0.00013996,2]
[353004319,1739485846549,-153.0,0.00013996,2]
[353004320,1739485846559,-153.0,0.00013996,2]
[353004321,1739485846569,-153.0,0.00013996,2]
[353004322,1739485846579,-153.0,0.00013996,2]
[353004323,1739485846589,-153.0,0.00013996,2]
[353004324,1739485846599,-153.0,0.00013996,2]
[353004325,1739485846608,-153.0,0.00013996,2]
[353004326,1739485846619,-153.0,0.00013996,2]
[353004327,1739485846629,-153.0,0.00013996,2]
[353004328,1739485846639,-153.0,0.00013996,2]
[353004329,1739485846648,-153.0,0.00013996,2]
[353004330,1739485846658,-153.0,0.00013996,2]
[353004331,1739485846668,-153.0,0.00013996,2]
[353004332,1739485846678,-153.0,0.00013996,2]
[353004333,1739485846687,-153.0,0.00013996,2]
[353004334,1739485846697,-153.0,0.00013996,2]
[353004335,1739485846707,-153.0,0.00013996,2]
[353004336,1739485846716,-153.0,0.00013996,2]
[353004337,1739485846725,-153.0,0.00013996,2]
[353004338,1739485846735,-153.0,0.00013996,2]
[353004339,1739485846745,-153.0,0.00013996,2]
[353004340,1739485846754,-153.0,0.00013996,2]
[353004341,1739485846764,-153.0,0.00013996,2]
[353004342,1739485846774,-153.0,0.00013996,2]
[353004343,1739485846784,-153.0,0.00013996,2]
[353004344,1739485846794,-153.0,0.00013996,2]
[353004345,1739485846804,-153.0,0.00013996,2]
[353004346,1739485846814,-153.0,0.00013996,2]
[353004347,1739485846823,-153.0,0.00013996,2]
[353004348,1739485846832,-153.0,0.00013996,2]
[353004349,1739485846843,-153.0,0.00013996,2]
[353004350,1739485846853,-153.0,0.00013996,2]
[353004351,1739485846862,-153.0,0.00013996,2]
[353004352,1739485846871,-151.0,0.00014,2]
[353004353,1739485846881,-151.0,0.00014,2]
[353004354,1739485846891,-151.0,0.00014,2]
[353004355,1739485846901,-354.9488798,0.00014,2]
[353004356,1739485846910,-154.6488878,0.00014,2]
[353004357,1739485846920,-354.9488798,0.00014,2]
[353004358,1739485846930,-42716.53868951,0.00014,2]
[353004359,1739485846939,-153.0,0.00014007,2]
[353004360,1739485846949,-153.0,0.00014007,2]
[353004361,1739485846959,-153.0,0.00014007,2]
[353004362,1739485846969,-153.0,0.00014007,2]
[353004363,1739485846979,-153.0,0.00014007,2]
[353004364,1739485846989,-153.0,0.00014007,2]
[353004365,1739485847000,-153.0,0.00014007,2]
[353004366,1739485847013,-153.0,0.00014007,2]
[353004368,1739485847022,-153.0,0.00014007,2]
[353004370,1739485847032,-153.0,0.00014007,2]
[353004372,1739485847043,-153.0,0.00014007,2]
[353004374,1739485847052,-153.0,0.00014007,2]
[353004376,1739485847063,-153.0,0.00014007,2]
[353004378,1739485847072,-153.0,0.00014007,2]
[353004380,1739485847082,-153.0,0.00014007,2]
[353004382,1739485847092,-153.0,0.00014007,2]
[353004384,1739485847101,-153.0,0.00014007,2]
[353004386,1739485847110,-153.0,0.00014007,2]
[353004388,1739485847119,-153.0,0.00014007,2]
[353004390,1739485847128,-153.0,0.00014007,2]
[353004392,1739485847138,-153.0,0.00014007,2]
[353004394,1739485847148,-153.0,0.00014007,2]
[353004396,1739485847157,-153.0,0.00014007,2]
[353004398,1739485847166,-153.0,0.00014007,2]
[353004400,1739485847176,-153.0,0.00014007,2]
[353004402,1739485847186,-153.0,0.00014007,2]
[353004404,1739485847195,-153.0,0.00014007,2]
[353004406,1739485847205,-153.0,0.00014007,2]
[353004408,1739485847215,-153.0,0.00014007,2]
[353004410,1739485847224,-153.0,0.00014007,2]
[353004412,1739485847233,-153.0,0.00014007,2]
[353004414,1739485847243,-153.0,0.00014007,2]
[353004416,1739485847252,-153.0,0.00014007,2]
[353004418,1739485847262,-153.0,0.00014007,2]
[353004420,1739485847271,-153.0,0.00014007,2]
[353004422,1739485847280,-153.0,0.00014007,2]
[353004424,1739485847290,-153.0,0.00014007,2]
[353004426,1739485847299,-153.0,0.00014007,2]
[353004427,1739485847308,-153.0,0.00014007,2]
[353004429,1739485847318,-153.0,0.00014007,2]
[353004431,1739485847327,-153.0,0.00014007,2]
[353004433,1739485847336,-153.0,0.00014007,2]
[353004435,1739485847346,-153.0,0.00014007,2]
[353004437,1739485847356,-153.0,0.00014007,2]
[353004439,1739485847365,-153.0,0.00014007,2]
[353004441,1739485847375,-153.0,0.00014007,2]
[353004443,1739485847385,-153.0,0.00014007,2]
[353004445,1739485847394,-153.0,0.00014007,2]
[353004447,1739485847403,-153.0,0.00014007,2]
[353004449,1739485847413,-153.0,0.00014007,2]
[353004451,1739485847423,-153.0,0.00014007,2]
[353004453,1739485847433,-153.0,0.00014007,2]
[353004455,1739485847442,-153.0,0.00014007,2]
[353004457,1739485847452,-153.0,0.00014007,2]
[353004459,1739485847462,-153.0,0.00014007,2]
[353004461,1739485847471,-153.0,0.00014007,2]
[353004463,1739485847482,-153.0,0.00014007,2]
[353004465,1739485847492,-153.0,0.00014007,2]
[353004467,1739485847501,-153.0,0.00014007,2]
[353004469,1739485847511,-153.0,0.00014007,2]
[353004471,1739485847520,-153.0,0.00014007,2]
[353004473,1739485847529,-153.0,0.00014007,2]
[353004475,1739485847539,-153.0,0.00014007,2]
[353004477,1739485847549,-153.0,0.00014007,2]
[353004479,1739485847559,-151.0,0.00014026,2]
[353004481,1739485847569,-3827.99,0.00014026,2]
[353004484,1739485847579,-3827.99,0.00014026,2]
[353004486,1739485847589,-3827.99,0.00014026,2]
[353004488,1739485847599,-3827.99,0.00014026,2]
[353004490,1739485847609,-3827.99,0.00014026,2]
[353004492,1739485847618,-3828.12,0.00014026,2]
[353004493,1739485847627,-61584.17390447,0.00014027,5]
[353004495,1739485847637,-7295.0135406,0.00014027,5]
[353004497,1739485847646,-665.87,0.00014027,2]
[353004499,1739485847655,-237.2459132,0.00014027,2]
[353004501,1739485847665,-500.0,0.00014027,2]
[353004503,1739485847674,-500.0,0.00014027,2]
[353004506,1739485847683,-500.0,0.00014027,2]
[353004508,1739485847693,-500.0,0.00014027,2]
[353004510,1739485847703,-500.0,0.00014027,2]
[353004512,1739485847712,-2156.53,0.00014027,2]
[353004513,1739485847722,-500.0,0.00014027,2]
[353004516,1739485847732,-500.0,0.00014027,2]
[353004518,1739485847742,-527.8,0.00014027,2]
[353004520,1739485847752,-1006.14,0.00014027,2]
[353004522,1739485847762,-16065.36,0.00014027,2]
[353004523,1739485847771,-1631.44,0.00014027,2]
[353004525,1739485847781,-500.0,0.00014027,2]
[353004528,1739485847793,-771.22,0.00014027,2]
[353004530,1739485847803,-583.34,0.00014027,2]
[353004532,1739485847812,-500.0,0.00014027,2]
[353004534,1739485847823,-904.48,0.00014027,2]
[353004536,1739485847833,-396.34594707,0.00014027,2]
[353004538,1739485847843,-500.0,0.00014027,2]
[353004540,1739485847853,-6502.85,0.00014027,2]
[353004542,1739485847864,-652.54,0.00014027,2]
[353004544,1739485847874,-500.0,0.00014027,2]
[353004546,1739485847886,-595.75617076,0.00014027,2]
[353004548,1739485847895,-500.0,0.00014027,2]
[353004550,1739485847905,-1423.3,0.00014027,2]
[353004552,1739485847914,-500.0,0.00014027,2]
[353004554,1739485847924,-151.18142,0.00014027,2]
[353004556,1739485847934,-500.0,0.00014027,2]
[353004558,1739485847943,-573.1,0.00014027,2]
[353004560,1739485847950,-558.32,0.00014027,2]
[353004562,1739485847959,-1497.04,0.00014027,2]
[353004564,1739485847968,-941.52,0.00014027,2]
[353004565,1739485847976,-500.0,0.00014027,2]
[353004568,1739485847986,-1323.85,0.00014027,2]
[353004570,1739485847995,-560.11,0.00014027,2]
[353004572,1739485848008,-151.0,0.00014027,2]
[353004574,1739485848016,-500.0,0.00014027,2]
[353004576,1739485848025,-151.0,0.00014027,2]
[353004578,1739485848034,-151.0,0.000141,2]
[353004580,1739485848043,-151.0,0.000141,2]
[353004582,1739485848052,-151.0,0.000141,2]
[353004583,1739485848060,-151.0,0.000141,2]
[353004585,1739485848069,-152.2124385,0.00014107,2]
[353004587,1739485848078,-152.2124385,0.00014107,2]
[353004590,1739485848091,-152.2124385,0.00014107,2]
[353004591,1739485848101,-152.2124385,0.00014107,2]
[353004593,1739485848109,-152.2124385,0.00014107,2]
[353004595,1739485848118,-152.2124385,0.00014107,2]
[353004597,1739485848127,-152.2124385,0.00014107,2]
[353004599,1739485848136,-152.2124385,0.00014107,2]
[353004601,1739485848144,-152.2124385,0.00014107,2]
[353004603,1739485848154,-152.2124385,0.00014107,2]
[353004605,1739485848162,-152.2124385,0.00014107,2]
[353004607,1739485848170,-152.2124385,0.00014107,2]
[353004609,1739485848179,-152.2124385,0.00014107,2]
[353004611,1739485848189,-152.2124385,0.00014107,2]
[353004613,1739485848198,-152.2124385,0.00014107,2]
[353004615,1739485848207,-152.2124385,0.00014107,2]
[353004617,1739485848214,-152.2124385,0.00014107,2]
[353004619,1739485848223,-152.2124385,0.00014107,2]
[353004621,1739485848233,-152.21,0.00014107,2]
[353004623,1739485848243,-665.87,0.00014109,2]
[353004625,1739485848253,-500.0,0.00014109,2]
[353004627,1739485848262,-500.0,0.00014109,2]
[353004629,1739485848272,-197.85165186,0.00014109,2]
[353004631,1739485848283,-500.0,0.00014109,2]
[353004633,1739485848293,-500.0,0.00014109,2]
[353004635,1739485848303,-2156.53,0.00014109,2]
[353004637,1739485848314,-500.0,0.00014109,2]
[353004639,1739485848325,-500.0,0.00014109,2]
[353004641,1739485848335,-527.8,0.00014109,2]
[353004643,1739485848346,-1006.14,0.00014109,2]
[353004645,1739485848357,-16065.36,0.00014109,2]
[353004647,1739485848368,-1631.44,0.00014109,2]
[353004649,1739485848378,-500.0,0.00014109,2]
[353004651,1739485848388,-771.22,0.00014109,2]
[353004653,1739485848400,-583.34,0.00014109,2]
[353004655,1739485848411,-500.0,0.00014109,2]
[353004657,1739485848422,-904.48,0.00014109,2]
[353004659,1739485848432,-500.0,0.00014109,2]
[353004661,1739485848442,-6502.85,0.00014109,2]
[353004663,1739485848453,-652.54,0.00014109,2]
[353004665,1739485848463,-500.0,0.00014109,2]
[353004667,1739485848473,-500.0,0.00014109,2]
[353004669,1739485848483,-1423.3,0.00014109,2]
[353004671,1739485848493,-500.0,0.00014109,2]
[353004673,1739485848503,-500.0,0.00014109,2]
[353004675,1739485848513,-573.1,0.00014109,2]
[353004677,1739485848524,-558.32,0.00014109,2]
[353004679,1739485848535,-1497.04,0.00014109,2]
[353004681,1739485848545,-157.817582,0.00014109,2]
[353004683,1739485848555,-157.817582,0.00014109,2]
[353004685,1739485848566,-941.52,0.00014109,2]
[353004687,1739485848576,-793.426772,0.00014109,2]
[353004689,1739485848587,-1323.85,0.00014109,2]
[353004691,1739485848598,-793.426772,0.00014109,2]
[353004693,1739485848614,-560.11,0.00014109,2]
[353004695,1739485848624,-500.0,0.00014109,2]
[353004697,1739485848634,-164.0,0.00014155,2]
[353004699,1739485848644,-354.876058,0.00014164,2]
[353004701,1739485848656,-10946.77762852,0.00014168,2]
[353004728,1739485848919,-500.0,0.00013698,2]
[353004730,1739485848929,-795.61141,0.00014168,2]
[353004759,1739485849236,-354.7215866,0.000141,2]
[353004762,1739485849247,-1525.81344008,0.00014168,2]
[353004764,1739485849258,-709.46497332,0.00014189,2]
[353017918,1739487032590,-199.41598815,0.00010578,2]
[353017920,1739487032600,-346.936384,0.00010685,2]
[353017922,1739487032610,-537.56746277,0.00011897,2]
[353017924,1739487032622,-762.43253723,0.00011897,2]
[353017926,1739487032631,-1300.0,0.00013267,2]
[353017928,1739487032641,-241.02375288,0.00013598,4]
[353017931,1739487032661,-335.73190878,0.00013598,4]
[353017933,1739487032670,-58.71095327,0.000136,2]
[353018421,1739487038180,-296.02171393,0.000136,2]
[353018423,1739487038190,-300.0,0.00013696,2]
[353018425,1739487038199,-499.99999999,0.00013697,2]
[353018427,1739487038209,-260.45900962,0.00013697,2]
[353018429,1739487038218,-500.0,0.00013697,2]
[353018431,1739487038227,-437.35164141,0.00013697,2]
[353018433,1739487038237,-500.0,0.00013697,2]
[353018435,1739487038246,-333.7466723,0.00013697,2]
[353018446,1739487038337,-166.2533277,0.00013697,2]
[353018448,1739487038347,-500.0,0.00013697,2]
[353018450,1739487038357,-500.0,0.00013697,2]
[353018452,1739487038366,-496.49095826,0.00013697,2]
[353018454,1739487038376,-500.0,0.00013697,2]
[353018456,1739487038388,-500.0,0.00013697,2]
[353018458,1739487038398,-500.0,0.00013697,2]
[353018460,1739487038408,-265.17457156,0.00013697,2]
[353018462,1739487038418,-500.0,0.00013697,2]
[353018464,1739487038429,-500.0,0.00013697,2]
[353018466,1739487038438,-500.0,0.00013697,2]
[353018468,1739487038448,-500.0,0.00013697,2]
[353018470,1739487038458,-500.0,0.00013697,2]
[353018489,1739487038625,-500.0,0.00013697,2]
[353018492,1739487038642,-500.0,0.00013697,2]
[353018494,1739487038652,-464.90958258,0.00013697,2]
[353018496,1739487038662,-500.0,0.00013697,2]
[353018498,1739487038671,-500.0,0.00013697,2]
[353018500,1739487038680,-500.0,0.00013697,2]
[353018502,1739487038690,-500.0,0.00013697,2]
[353018504,1739487038699,-500.0,0.00013697,2]
[353018506,1739487038709,-500.0,0.00013697,2]
[353018508,1739487038718,-500.0,0.00013697,2]
[353018510,1739487038728,-500.0,0.00013697,2]
[353018512,1739487038738,-500.0,0.00013697,2]
[353018514,1739487038748,-500.0,0.00013697,2]
[353018516,1739487038758,-500.0,0.00013697,2]
[353018518,1739487038767,-335.26189126,0.00013697,2]
[353018520,1739487038777,-500.0,0.00013697,2]
[353018522,1739487038786,-500.0,0.00013697,2]
[353018524,1739487038796,-500.0,0.00013697,2]
[353018526,1739487038806,-500.0,0.00013697,2]
[353018528,1739487038816,-500.0,0.00013697,2]
[353018530,1739487038825,-500.0,0.00013697,2]
[353018532,1739487038834,-500.0,0.00013697,2]
[353018534,1739487038844,-500.0,0.00013697,2]
[353018536,1739487038853,-500.0,0.00013697,2]
[353018538,1739487038863,-500.0,0.00013697,2]
[353018540,1739487038872,-500.0,0.00013697,2]
[353018542,1739487038881,-500.0,0.00013697,2]
[353018544,1739487038891,-500.0,0.00013697,2]